[Event "Titled Tuesday Blitz April 26 Late 2022"]
[White "Prohorov, Olexandr"]
[Black "Maksimovic, Bojan"]
[WhiteFideId "14105578"]
[BlackFideId "14408120"]
[WhiteElo "1993"]
[BlackElo "2448"]
[Result "1/2-1/2"]
[Round "11"]
[TimeControl "180+1"]
[Date "2022.04.26"]
[WhiteClock "0:00:17"]
[BlackClock "0:00:08"]

1. d4 {[%clk 0:03:00]}  d6 {[%clk 0:03:00]} 2. Nf3 {[%clk 0:02:59]}  g6 {[%clk 0:03:01]} 3. Bf4 {[%clk 0:02:58]}  Bg7 {[%clk 0:03:01]} 4. e3 {[%clk 0:02:59]}  Nc6 {[%clk 0:03:02]} 5. Be2 {[%clk 0:02:57]}  e5 {[%clk 0:03:02]} 6. Bg3 {[%clk 0:02:56]}  Nge7 {[%clk 0:03:02]} 7. dxe5 {[%clk 0:02:54]}  dxe5 {[%clk 0:03:03]} 8. Qxd8+ {[%clk 0:02:53]}  Kxd8 {[%clk 0:03:04]} 9. Nc3 {[%clk 0:02:53]}  f6 {[%clk 0:03:01]} 10. O-O-O+ {[%clk 0:02:49]}  Bd7 {[%clk 0:03:02]} 11. e4 {[%clk 0:02:48]}  Kc8 {[%clk 0:03:01]} 12. Bc4 {[%clk 0:02:42]}  Na5 {[%clk 0:02:56]} 13. Be2 {[%clk 0:02:39]}  Be6 {[%clk 0:02:56]} 14. Nd2 {[%clk 0:02:30]}  Bh6 {[%clk 0:02:53]} 15. Kb1 {[%clk 0:02:22]}  Nac6 {[%clk 0:02:48]} 16. Nb3 {[%clk 0:02:22]}  Bxb3 {[%clk 0:02:30]} 17. axb3 {[%clk 0:02:19]}  Nd4 {[%clk 0:02:31]} 18. Bc4 {[%clk 0:02:07]}  c6 {[%clk 0:02:30]} 19. f4 {[%clk 0:01:45]}  exf4 {[%clk 0:02:28]} 20. Bf2 {[%clk 0:01:45]}  c5 {[%clk 0:02:26]} 21. b4 {[%clk 0:01:42]}  cxb4 {[%clk 0:01:34]} 22. Bxd4 {[%clk 0:01:33]}  bxc3 {[%clk 0:01:34]} 23. Bxc3 {[%clk 0:01:25]}  Kc7 {[%clk 0:01:29]} 24. e5 {[%clk 0:01:21]}  fxe5 {[%clk 0:01:17]} 25. Bxe5+ {[%clk 0:01:21]}  Kb6 {[%clk 0:01:18]} 26. Bxh8 {[%clk 0:01:14]}  Rxh8 {[%clk 0:01:19]} 27. Rd7 {[%clk 0:01:14]}  Nc6 {[%clk 0:01:08]} 28. Rhd1 {[%clk 0:01:10]}  Ne5 {[%clk 0:00:56]} 29. R7d6+ {[%clk 0:01:02]}  Kc7 {[%clk 0:00:54]} 30. Be2 {[%clk 0:00:52]}  Bg7 {[%clk 0:00:51]} 31. Bf3 {[%clk 0:00:47]}  Re8 {[%clk 0:00:46]} 32. c3 {[%clk 0:00:41]}  Re7 {[%clk 0:00:45]} 33. h3 {[%clk 0:00:38]}  a6 {[%clk 0:00:46]} 34. Ka2 {[%clk 0:00:36]}  Nc4 {[%clk 0:00:38]} 35. Rd8 {[%clk 0:00:33]}  Ne5 {[%clk 0:00:37]} 36. R8d6 {[%clk 0:00:30]}  g5 {[%clk 0:00:29]} 37. R6d2 {[%clk 0:00:24]}  Nc4 {[%clk 0:00:27]} 38. Rd8 {[%clk 0:00:23]}  h6 {[%clk 0:00:24]} 39. Rg8 {[%clk 0:00:19]}  Nd6 {[%clk 0:00:19]} 40. Kb3 {[%clk 0:00:17]}  Nf5 {[%clk 0:00:17]} 41. Rdd8 {[%clk 0:00:15]}  Nd6 {[%clk 0:00:14]} 42. Ra8 {[%clk 0:00:14]}  Kb6 {[%clk 0:00:07]} 43. Rad8 {[%clk 0:00:13]}  Kc5 {[%clk 0:00:07]} 44. Kc2 {[%clk 0:00:12]}  a5 {[%clk 0:00:07]} 45. b4+ {[%clk 0:00:11]}  axb4 {[%clk 0:00:07]} 46. cxb4+ {[%clk 0:00:12]}  Kxb4 {[%clk 0:00:03]} 47. Rxd6 {[%clk 0:00:12]}  Rc7+ {[%clk 0:00:04]} 48. Kd1 {[%clk 0:00:11]}  Be5 {[%clk 0:00:02]} 49. Rb6+ {[%clk 0:00:11]}  Ka5 {[%clk 0:00:01]} 50. Rxb7 {[%clk 0:00:12]}  Rxb7 {[%clk 0:00:02]} 51. Bxb7 {[%clk 0:00:11]}  Kb6 {[%clk 0:00:03]} 52. Bf3 {[%clk 0:00:12]}  Kc5 {[%clk 0:00:03]} 53. Rg6 {[%clk 0:00:13]}  h5 {[%clk 0:00:02]} 54. Rh6 {[%clk 0:00:13]}  g4 {[%clk 0:00:02]} 55. hxg4 {[%clk 0:00:12]}  hxg4 {[%clk 0:00:03]} 56. Bxg4 {[%clk 0:00:13]}  Kd4 {[%clk 0:00:04]} 57. Ke2 {[%clk 0:00:14]}  Bg7 {[%clk 0:00:04]} 58. Rh7 {[%clk 0:00:13]}  Be5 {[%clk 0:00:04]} 59. Bf3 {[%clk 0:00:14]}  Kc5 {[%clk 0:00:05]} 60. Rh5 {[%clk 0:00:14]}  Kd6 {[%clk 0:00:06]} 61. Rxe5 {[%clk 0:00:15]}  Kxe5 {[%clk 0:00:06]} 62. Kd3 {[%clk 0:00:15]}  Kf5 {[%clk 0:00:06]} 63. Kd4 {[%clk 0:00:16]}  Kg5 {[%clk 0:00:07]} 64. Ke4 {[%clk 0:00:16]}  Kh4 {[%clk 0:00:08]} 65. Kxf4 {[%clk 0:00:17]} 1/2-1/2


[Site "https://www.chess.com"]

[Event "Titled Tuesday Blitz April 26 Late 2022"]
[White "Remolar Gallen, Jose"]
[Black "De Souza, Cristiano Gomes"]
[WhiteFideId "2215187"]
[BlackFideId "2151758"]
[WhiteElo "2205"]
[BlackElo "2068"]
[Result "1/2-1/2"]
[Round "11"]
[TimeControl "180+1"]
[Date "2022.04.26"]
[WhiteClock "0:00:15"]
[BlackClock "0:00:10"]

1. d4 {[%clk 0:03:00]}  Nf6 {[%clk 0:02:54]} 2. c4 {[%clk 0:02:57]}  g6 {[%clk 0:02:55]} 3. Nc3 {[%clk 0:02:57]}  Bg7 {[%clk 0:02:55]} 4. e4 {[%clk 0:02:58]}  d6 {[%clk 0:02:56]} 5. Be2 {[%clk 0:02:58]}  O-O {[%clk 0:02:56]} 6. Be3 {[%clk 0:02:58]}  e5 {[%clk 0:02:56]} 7. d5 {[%clk 0:02:58]}  Nbd7 {[%clk 0:02:56]} 8. h4 {[%clk 0:02:57]}  Nc5 {[%clk 0:02:53]} 9. Qc2 {[%clk 0:02:51]}  a5 {[%clk 0:02:52]} 10. h5 {[%clk 0:02:50]}  Bd7 {[%clk 0:02:49]} 11. O-O-O {[%clk 0:02:47]}  Ng4 {[%clk 0:02:49]} 12. Bxg4 {[%clk 0:02:45]}  Bxg4 {[%clk 0:02:48]} 13. f3 {[%clk 0:02:46]}  Bd7 {[%clk 0:02:47]} 14. Nh3 {[%clk 0:02:42]}  f5 {[%clk 0:02:42]} 15. hxg6 {[%clk 0:02:32]}  hxg6 {[%clk 0:02:42]} 16. Bg5 {[%clk 0:02:31]}  Qe8 {[%clk 0:02:39]} 17. Nf2 {[%clk 0:02:28]}  Kf7 {[%clk 0:02:38]} 18. exf5 {[%clk 0:02:16]}  Bxf5 {[%clk 0:02:36]} 19. Nfe4 {[%clk 0:02:15]}  Rh8 {[%clk 0:02:29]} 20. g4 {[%clk 0:02:13]}  Nxe4 {[%clk 0:02:12]} 21. Nxe4 {[%clk 0:01:42]}  Bd7 {[%clk 0:02:00]} 22. c5 {[%clk 0:01:32]}  Qf8 {[%clk 0:01:51]} 23. Rxh8 {[%clk 0:01:28]}  Bxh8 {[%clk 0:01:51]} 24. Kb1 {[%clk 0:01:24]}  Bg7 {[%clk 0:01:50]} 25. cxd6 {[%clk 0:01:20]}  cxd6 {[%clk 0:01:50]} 26. Qc7 {[%clk 0:01:21]}  Kg8 {[%clk 0:01:27]} 27. Qxd7 {[%clk 0:01:20]}  Qxf3 {[%clk 0:01:25]} 28. Qe6+ {[%clk 0:01:13]}  Kh8 {[%clk 0:01:21]} 29. Nc3 {[%clk 0:01:06]}  e4 {[%clk 0:01:16]} 30. Qxg6 {[%clk 0:01:03]}  Bxc3 {[%clk 0:01:12]} 31. Qh6+ {[%clk 0:00:52]}  Kg8 {[%clk 0:01:12]} 32. Qe6+ {[%clk 0:00:46]}  Kh8 {[%clk 0:01:08]} 33. Qh6+ {[%clk 0:00:43]}  Kg8 {[%clk 0:01:08]} 34. Rh1 {[%clk 0:00:44]}  Qd3+ {[%clk 0:00:35]} 35. Ka1 {[%clk 0:00:43]}  Bxb2+ {[%clk 0:00:35]} 36. Kxb2 {[%clk 0:00:42]}  Qd4+ {[%clk 0:00:35]} 37. Kb1 {[%clk 0:00:38]}  Qd3+ {[%clk 0:00:35]} 38. Kb2 {[%clk 0:00:37]}  Qd4+ {[%clk 0:00:34]} 39. Kb3 {[%clk 0:00:28]}  a4+ {[%clk 0:00:29]} 40. Kc2 {[%clk 0:00:19]}  Rc8+ {[%clk 0:00:28]} 41. Kb1 {[%clk 0:00:17]}  Qb4+ {[%clk 0:00:14]} 42. Ka1 {[%clk 0:00:15]}  Qc3+ {[%clk 0:00:11]} 43. Kb1 {[%clk 0:00:15]}  Qc2+ {[%clk 0:00:10]} 44. Ka1 {[%clk 0:00:15]}  Qc3+ {[%clk 0:00:10]} 45. Kb1 {[%clk 0:00:15]}  Qc2+ {[%clk 0:00:10]} 46. Ka1 {[%clk 0:00:15]}  Qc3+ {[%clk 0:00:10]} 1/2-1/2


[Site "https://www.chess.com"]

[Event "Titled Tuesday Blitz April 26 Late 2022"]
[White "Richter, Nils"]
[Black "Rosenberg, Evan S"]
[WhiteFideId "12990809"]
[BlackFideId "2019299"]
[WhiteElo "2243"]
[BlackElo "2378"]
[Result "1-0"]
[Round "11"]
[TimeControl "180+1"]
[Date "2022.04.26"]
[WhiteClock "0:00:54"]
[BlackClock "0:00:03"]

1. e4 {[%clk 0:03:00]}  e5 {[%clk 0:02:59]} 2. Nf3 {[%clk 0:03:00]}  Nc6 {[%clk 0:02:59]} 3. Bb5 {[%clk 0:03:00]}  Nf6 {[%clk 0:02:59]} 4. O-O {[%clk 0:02:59]}  Nxe4 {[%clk 0:03:00]} 5. d4 {[%clk 0:02:57]}  Nd6 {[%clk 0:02:59]} 6. Bxc6 {[%clk 0:02:57]}  dxc6 {[%clk 0:03:00]} 7. dxe5 {[%clk 0:02:58]}  Nf5 {[%clk 0:03:01]} 8. Qxd8+ {[%clk 0:02:58]}  Kxd8 {[%clk 0:03:02]} 9. h3 {[%clk 0:02:58]}  Ke8 {[%clk 0:02:57]} 10. b3 {[%clk 0:02:55]}  h5 {[%clk 0:02:45]} 11. Bb2 {[%clk 0:02:54]}  Be6 {[%clk 0:02:46]} 12. Nbd2 {[%clk 0:02:51]}  Be7 {[%clk 0:02:44]} 13. Ne4 {[%clk 0:02:49]}  h4 {[%clk 0:02:40]} 14. Rad1 {[%clk 0:02:45]}  Rh5 {[%clk 0:02:33]} 15. Nd4 {[%clk 0:02:41]}  Nxd4 {[%clk 0:02:32]} 16. Bxd4 {[%clk 0:02:41]}  b6 {[%clk 0:02:31]} 17. f4 {[%clk 0:02:38]}  c5 {[%clk 0:02:30]} 18. Be3 {[%clk 0:02:33]}  Bf5 {[%clk 0:02:27]} 19. Nc3 {[%clk 0:02:28]}  Bxc2 {[%clk 0:02:24]} 20. Rd2 {[%clk 0:02:25]}  Bf5 {[%clk 0:02:21]} 21. Nb5 {[%clk 0:02:21]}  Bd8 {[%clk 0:01:58]} 22. Rfd1 {[%clk 0:02:19]}  a6 {[%clk 0:01:52]} 23. Nc3 {[%clk 0:02:18]}  Be6 {[%clk 0:01:32]} 24. Kf2 {[%clk 0:02:15]}  Be7 {[%clk 0:01:24]} 25. Nd5 {[%clk 0:02:14]}  Bxd5 {[%clk 0:01:23]} 26. Rxd5 {[%clk 0:02:15]}  Rd8 {[%clk 0:01:17]} 27. Rxd8+ {[%clk 0:02:14]}  Bxd8 {[%clk 0:01:18]} 28. Kf3 {[%clk 0:02:15]}  g6 {[%clk 0:01:14]} 29. Ke4 {[%clk 0:02:11]}  Rf5 {[%clk 0:01:13]} 30. a4 {[%clk 0:01:51]}  Ke7 {[%clk 0:01:00]} 31. Ra1 {[%clk 0:01:45]}  a5 {[%clk 0:01:00]} 32. Rd1 {[%clk 0:01:36]}  Rh5 {[%clk 0:00:50]} 33. Kd5 {[%clk 0:01:34]}  Kd7 {[%clk 0:00:45]} 34. Kc4+ {[%clk 0:01:33]}  Ke7 {[%clk 0:00:36]} 35. Kb5 {[%clk 0:01:31]}  g5 {[%clk 0:00:29]} 36. f5 {[%clk 0:01:25]}  f6 {[%clk 0:00:23]} 37. e6 {[%clk 0:01:23]}  Rh8 {[%clk 0:00:22]} 38. Rd7+ {[%clk 0:01:21]}  Ke8 {[%clk 0:00:22]} 39. Kc6 {[%clk 0:01:19]}  Rg8 {[%clk 0:00:19]} 40. Rh7 {[%clk 0:01:05]}  g4 {[%clk 0:00:13]} 41. Rxh4 {[%clk 0:01:00]}  gxh3 {[%clk 0:00:11]} 42. gxh3 {[%clk 0:01:00]}  Rg3 {[%clk 0:00:11]} 43. Rh8+ {[%clk 0:00:59]}  Ke7 {[%clk 0:00:11]} 44. Bh6 {[%clk 0:00:55]}  Rxb3 {[%clk 0:00:03]} 45. Bf8+ {[%clk 0:00:54]}  Ke8 {[%clk 0:00:03]} 46. Bd6# {[%clk 0:00:54]} 1-0


[Site "https://www.chess.com"]

[Event "Titled Tuesday Blitz April 26 Late 2022"]
[White "Sheng, Joshua"]
[Black "Mikhailov, Viacheslav"]
[WhiteFideId "2057360"]
[BlackFideId "4187369"]
[WhiteElo "2142"]
[BlackElo "2381"]
[Result "0-1"]
[Round "11"]
[TimeControl "180+1"]
[Date "2022.04.26"]
[WhiteClock "0:01:18"]
[BlackClock "0:00:43"]

1. e4 {[%clk 0:03:00]}  d6 {[%clk 0:02:59]} 2. d4 {[%clk 0:03:00]}  Nf6 {[%clk 0:03:00]} 3. Nc3 {[%clk 0:03:00]}  g6 {[%clk 0:03:00]} 4. Be3 {[%clk 0:02:58]}  Bg7 {[%clk 0:03:00]} 5. Qd2 {[%clk 0:02:58]}  O-O {[%clk 0:03:01]} 6. Bh6 {[%clk 0:02:56]}  e5 {[%clk 0:03:00]} 7. d5 {[%clk 0:02:50]}  c6 {[%clk 0:02:59]} 8. O-O-O {[%clk 0:02:44]}  cxd5 {[%clk 0:02:56]} 9. Bxg7 {[%clk 0:02:44]}  Kxg7 {[%clk 0:02:57]} 10. Nxd5 {[%clk 0:02:37]}  Nc6 {[%clk 0:02:56]} 11. f3 {[%clk 0:02:26]}  Be6 {[%clk 0:02:55]} 12. Ne2 {[%clk 0:02:22]}  Bxd5 {[%clk 0:02:51]} 13. exd5 {[%clk 0:02:22]}  Ne7 {[%clk 0:02:50]} 14. Nc3 {[%clk 0:02:22]}  Qa5 {[%clk 0:02:49]} 15. Bc4 {[%clk 0:02:21]}  Rfc8 {[%clk 0:02:47]} 16. Bb3 {[%clk 0:02:21]}  Nf5 {[%clk 0:02:37]} 17. h4 {[%clk 0:02:16]}  h5 {[%clk 0:02:25]} 18. g4 {[%clk 0:02:14]}  Nd4 {[%clk 0:02:25]} 19. gxh5 {[%clk 0:02:06]}  Nxh5 {[%clk 0:02:24]} 20. Kb1 {[%clk 0:02:05]}  Nf4 {[%clk 0:01:52]} 21. Ne4 {[%clk 0:02:00]}  Qxd2 {[%clk 0:01:50]} 22. Nxd2 {[%clk 0:01:53]}  Rh8 {[%clk 0:01:46]} 23. c3 {[%clk 0:01:49]}  Nf5 {[%clk 0:01:43]} 24. Ne4 {[%clk 0:01:48]}  Rad8 {[%clk 0:01:23]} 25. Bc2 {[%clk 0:01:44]}  Rxh4 {[%clk 0:01:22]} 26. Ng3 {[%clk 0:01:41]}  Rxh1 {[%clk 0:01:15]} 27. Nxf5+ {[%clk 0:01:41]}  gxf5 {[%clk 0:01:16]} 28. Rxh1 {[%clk 0:01:41]}  Nxd5 {[%clk 0:01:07]} 29. Bxf5 {[%clk 0:01:41]}  Nf4 {[%clk 0:00:58]} 30. Kc1 {[%clk 0:01:33]}  Rh8 {[%clk 0:00:57]} 31. Rxh8 {[%clk 0:01:32]}  Kxh8 {[%clk 0:00:57]} 32. Kd2 {[%clk 0:01:32]}  Kg7 {[%clk 0:00:57]} 33. Ke3 {[%clk 0:01:29]}  Kf6 {[%clk 0:00:57]} 34. Bc8 {[%clk 0:01:29]}  b6 {[%clk 0:00:55]} 35. b4 {[%clk 0:01:29]}  d5 {[%clk 0:00:49]} 36. a4 {[%clk 0:01:27]}  Ke7 {[%clk 0:00:49]} 37. Bf5 {[%clk 0:01:23]}  Kd6 {[%clk 0:00:48]} 38. Bc8 {[%clk 0:01:23]}  f6 {[%clk 0:00:48]} 39. Bf5 {[%clk 0:01:23]}  a5 {[%clk 0:00:42]} 40. bxa5 {[%clk 0:01:18]}  bxa5 {[%clk 0:00:43]} 41. Bd3 {[%clk 0:01:18]} 0-1


[Site "https://www.chess.com"]

[Event "Titled Tuesday Blitz April 26 Late 2022"]
[White "Spata, German"]
[Black "Tanenbaum, Zachary"]
[WhiteFideId "113026"]
[BlackFideId "2060850"]
[WhiteElo "2238"]
[BlackElo "2168"]
[Result "0-1"]
[Round "11"]
[TimeControl "180+1"]
[Date "2022.04.26"]
[WhiteClock "0:00:16"]
[BlackClock "0:00:15"]

1. Nf3 {[%clk 0:03:00]}  d5 {[%clk 0:03:00]} 2. b3 {[%clk 0:03:01]}  c5 {[%clk 0:03:00]} 3. Bb2 {[%clk 0:03:01]}  f6 {[%clk 0:03:00]} 4. e3 {[%clk 0:02:59]}  e5 {[%clk 0:03:01]} 5. d3 {[%clk 0:02:58]}  Nc6 {[%clk 0:03:01]} 6. Be2 {[%clk 0:02:58]}  Bd6 {[%clk 0:03:01]} 7. O-O {[%clk 0:02:58]}  Nge7 {[%clk 0:03:02]} 8. e4 {[%clk 0:02:58]}  d4 {[%clk 0:03:02]} 9. Nbd2 {[%clk 0:02:57]}  Be6 {[%clk 0:02:59]} 10. Nc4 {[%clk 0:02:57]}  O-O {[%clk 0:02:58]} 11. Nxd6 {[%clk 0:02:55]}  Qxd6 {[%clk 0:02:58]} 12. Nd2 {[%clk 0:02:55]}  b5 {[%clk 0:02:57]} 13. g3 {[%clk 0:02:49]}  f5 {[%clk 0:02:52]} 14. exf5 {[%clk 0:02:46]}  Bxf5 {[%clk 0:02:49]} 15. Bf3 {[%clk 0:02:45]}  Qg6 {[%clk 0:02:34]} 16. Ne4 {[%clk 0:02:40]}  c4 {[%clk 0:02:33]} 17. bxc4 {[%clk 0:02:30]}  bxc4 {[%clk 0:02:34]} 18. Ba3 {[%clk 0:02:31]}  Bh3 {[%clk 0:01:52]} 19. Re1 {[%clk 0:02:26]}  Rxf3 {[%clk 0:01:24]} 20. Qxf3 {[%clk 0:02:18]}  Rf8 {[%clk 0:01:24]} 21. Qe2 {[%clk 0:01:50]}  Bg4 {[%clk 0:01:23]} 22. Qd2 {[%clk 0:01:46]}  c3 {[%clk 0:01:15]} 23. Qg5 {[%clk 0:01:42]}  Qe6 {[%clk 0:01:09]} 24. Bxe7 {[%clk 0:01:36]}  Nxe7 {[%clk 0:01:09]} 25. Nc5 {[%clk 0:01:34]}  Qc8 {[%clk 0:01:05]} 26. Qxe7 {[%clk 0:01:27]}  Re8 {[%clk 0:00:59]} 27. Qd6 {[%clk 0:01:15]}  Qf5 {[%clk 0:00:59]} 28. Qd7 {[%clk 0:00:54]}  Qxd7 {[%clk 0:00:39]} 29. Nxd7 {[%clk 0:00:55]}  Bxd7 {[%clk 0:00:39]} 30. f4 {[%clk 0:00:54]}  Ba4 {[%clk 0:00:34]} 31. Rac1 {[%clk 0:00:38]}  Rb8 {[%clk 0:00:28]} 32. Rxe5 {[%clk 0:00:38]}  Rb2 {[%clk 0:00:27]} 33. Re4 {[%clk 0:00:33]}  Bxc2 {[%clk 0:00:19]} 34. Re2 {[%clk 0:00:32]}  Bxd3 {[%clk 0:00:18]} 35. Re8+ {[%clk 0:00:27]}  Kf7 {[%clk 0:00:18]} 36. Rd8 {[%clk 0:00:27]}  c2 {[%clk 0:00:15]} 37. Rxd4 {[%clk 0:00:17]}  Rb1 {[%clk 0:00:15]} 38. Kf2 {[%clk 0:00:17]}  Rxc1 {[%clk 0:00:15]} 39. Rxd3 {[%clk 0:00:16]}  Rb1 {[%clk 0:00:15]} 0-1


[Site "https://www.chess.com"]

[Event "Titled Tuesday Blitz April 26 Late 2022"]
[White "Svane, Rasmus"]
[Black "Zhigalko, Sergei"]
[WhiteFideId "4657101"]
[BlackFideId "13502956"]
[WhiteElo "2645"]
[BlackElo "2662"]
[Result "1-0"]
[Round "11"]
[TimeControl "180+1"]
[Date "2022.04.26"]
[WhiteClock "0:00:08"]
[BlackClock "0:00:03"]

1. Nf3 {[%clk 0:03:00]}  Nf6 {[%clk 0:02:59]} 2. g3 {[%clk 0:02:59]}  b5 {[%clk 0:02:54]} 3. d4 {[%clk 0:02:54]}  Bb7 {[%clk 0:02:54]} 4. Bg2 {[%clk 0:02:54]}  e6 {[%clk 0:02:55]} 5. Bg5 {[%clk 0:02:55]}  Be7 {[%clk 0:02:50]} 6. Qd3 {[%clk 0:02:55]}  a6 {[%clk 0:02:39]} 7. c3 {[%clk 0:02:55]}  d6 {[%clk 0:02:38]} 8. a4 {[%clk 0:02:54]}  Be4 {[%clk 0:02:23]} 9. Qd1 {[%clk 0:02:51]}  Nbd7 {[%clk 0:02:22]} 10. Nbd2 {[%clk 0:02:50]}  Bb7 {[%clk 0:02:21]} 11. O-O {[%clk 0:02:42]}  O-O {[%clk 0:02:17]} 12. Qb3 {[%clk 0:02:38]}  Rb8 {[%clk 0:02:08]} 13. axb5 {[%clk 0:02:36]}  axb5 {[%clk 0:02:09]} 14. Rfe1 {[%clk 0:02:29]}  h6 {[%clk 0:01:39]} 15. Bxf6 {[%clk 0:02:29]}  Nxf6 {[%clk 0:01:37]} 16. e4 {[%clk 0:02:28]}  c5 {[%clk 0:01:37]} 17. Rad1 {[%clk 0:02:03]}  Qb6 {[%clk 0:01:35]} 18. e5 {[%clk 0:02:02]}  dxe5 {[%clk 0:01:33]} 19. dxe5 {[%clk 0:02:01]}  Nd5 {[%clk 0:01:31]} 20. Ne4 {[%clk 0:01:58]}  Rfd8 {[%clk 0:01:20]} 21. h4 {[%clk 0:01:59]}  c4 {[%clk 0:01:15]} 22. Qc2 {[%clk 0:01:59]}  b4 {[%clk 0:01:15]} 23. Nd4 {[%clk 0:01:56]}  Ra8 {[%clk 0:01:02]} 24. Qb1 {[%clk 0:01:10]}  Qc7 {[%clk 0:00:42]} 25. Nb5 {[%clk 0:01:07]}  Qb6 {[%clk 0:00:38]} 26. Nbd6 {[%clk 0:01:06]}  Ba6 {[%clk 0:00:32]} 27. Qc2 {[%clk 0:01:02]}  Rab8 {[%clk 0:00:29]} 28. Rd2 {[%clk 0:00:43]}  f5 {[%clk 0:00:20]} 29. Bh3 {[%clk 0:00:28]}  bxc3 {[%clk 0:00:10]} 30. Nxc3 {[%clk 0:00:27]}  Nb4 {[%clk 0:00:08]} 31. Qd1 {[%clk 0:00:22]}  Nd3 {[%clk 0:00:09]} 32. Qh5 {[%clk 0:00:14]}  Bxd6 {[%clk 0:00:08]} 33. Rxd3 {[%clk 0:00:11]}  cxd3 {[%clk 0:00:08]} 34. exd6 {[%clk 0:00:12]}  d2 {[%clk 0:00:08]} 35. Rxe6 {[%clk 0:00:10]}  Qxb2 {[%clk 0:00:06]} 36. Nd1 {[%clk 0:00:08]}  Qd4 {[%clk 0:00:05]} 37. Re7 {[%clk 0:00:08]}  Rxd6 {[%clk 0:00:04]} 38. Qf7+ {[%clk 0:00:09]}  Kh8 {[%clk 0:00:05]} 39. Bxf5 {[%clk 0:00:08]}  Rg8 {[%clk 0:00:04]} 40. Re8 {[%clk 0:00:08]}  Bc4 {[%clk 0:00:03]} 41. Rxg8# {[%clk 0:00:08]} 1-0


[Site "https://www.chess.com"]

[Event "Titled Tuesday Blitz April 26 Late 2022"]
[White "Toniutti, Ezio"]
[Black "Pakleza, Zbigniew"]
[WhiteFideId "113034"]
[BlackFideId "1119290"]
[WhiteElo "2215"]
[BlackElo "2467"]
[Result "0-1"]
[Round "11"]
[TimeControl "180+1"]
[Date "2022.04.26"]
[WhiteClock "0:00:04"]
[BlackClock "0:00:05"]

1. d4 {[%clk 0:02:56]}  d6 {[%clk 0:02:56]} 2. c4 {[%clk 0:02:56]}  e5 {[%clk 0:02:57]} 3. Nc3 {[%clk 0:02:55]}  exd4 {[%clk 0:02:57]} 4. Qxd4 {[%clk 0:02:55]}  Nc6 {[%clk 0:02:58]} 5. Qd2 {[%clk 0:02:55]}  Nf6 {[%clk 0:02:59]} 6. b3 {[%clk 0:02:54]}  a5 {[%clk 0:02:59]} 7. Bb2 {[%clk 0:02:54]}  a4 {[%clk 0:03:00]} 8. Rd1 {[%clk 0:02:53]}  axb3 {[%clk 0:02:59]} 9. axb3 {[%clk 0:02:53]}  g6 {[%clk 0:02:39]} 10. g3 {[%clk 0:02:53]}  Bg7 {[%clk 0:02:38]} 11. Bg2 {[%clk 0:02:53]}  O-O {[%clk 0:02:38]} 12. Nh3 {[%clk 0:02:52]}  Re8 {[%clk 0:02:27]} 13. O-O {[%clk 0:02:47]}  Bf5 {[%clk 0:02:26]} 14. Nf4 {[%clk 0:02:25]}  Nd7 {[%clk 0:01:05]} 15. Ncd5 {[%clk 0:02:18]}  Ra2 {[%clk 0:01:02]} 16. Nc3 {[%clk 0:02:07]}  Ra6 {[%clk 0:00:50]} 17. Nb5 {[%clk 0:01:44]}  Ra2 {[%clk 0:00:45]} 18. Nc3 {[%clk 0:01:40]}  Ra6 {[%clk 0:00:45]} 19. Na4 {[%clk 0:01:27]}  Nde5 {[%clk 0:00:38]} 20. Rfe1 {[%clk 0:01:12]}  Nxc4 {[%clk 0:00:36]} 21. bxc4 {[%clk 0:01:05]}  Rxa4 {[%clk 0:00:35]} 22. Bxg7 {[%clk 0:01:03]}  Kxg7 {[%clk 0:00:36]} 23. c5 {[%clk 0:01:00]}  dxc5 {[%clk 0:00:27]} 24. Nd5 {[%clk 0:00:40]}  Rd4 {[%clk 0:00:22]} 25. Qb2 {[%clk 0:00:39]}  f6 {[%clk 0:00:20]} 26. e3 {[%clk 0:00:29]}  Rxd1 {[%clk 0:00:18]} 27. Rxd1 {[%clk 0:00:29]}  Nb4 {[%clk 0:00:15]} 28. Qc3 {[%clk 0:00:16]}  c6 {[%clk 0:00:12]} 29. Qxc5 {[%clk 0:00:14]}  Nxd5 {[%clk 0:00:12]} 30. Rd4 {[%clk 0:00:10]}  Qe7 {[%clk 0:00:08]} 31. Qc1 {[%clk 0:00:04]}  Be6 {[%clk 0:00:08]} 32. Qd2 {[%clk 0:00:04]}  f5 {[%clk 0:00:06]} 33. h4 {[%clk 0:00:04]}  Nf6 {[%clk 0:00:06]} 34. h5 {[%clk 0:00:04]}  Nxh5 {[%clk 0:00:05]} 35. Rd7 {[%clk 0:00:04]}  Qxd7 {[%clk 0:00:05]} 0-1


[Site "https://www.chess.com"]

[Event "Titled Tuesday Blitz April 26 Late 2022"]
[White "Torres Cueto, Jesus Marcial"]
[Black "Omariev, Maksim"]
[WhiteFideId "4415280"]
[BlackFideId "4193423"]
[WhiteElo "2055"]
[BlackElo "2514"]
[Result "1-0"]
[Round "11"]
[TimeControl "180+1"]
[Date "2022.04.26"]
[WhiteClock "0:00:33"]
[BlackClock "0:00:01"]

1. d4 {[%clk 0:03:00]}  Nf6 {[%clk 0:02:58]} 2. c4 {[%clk 0:02:57]}  c5 {[%clk 0:02:59]} 3. d5 {[%clk 0:02:46]}  e6 {[%clk 0:02:59]} 4. Nc3 {[%clk 0:02:46]}  d6 {[%clk 0:02:53]} 5. Nf3 {[%clk 0:02:41]}  exd5 {[%clk 0:02:53]} 6. cxd5 {[%clk 0:02:42]}  g6 {[%clk 0:02:52]} 7. e3 {[%clk 0:02:42]}  Bg7 {[%clk 0:02:53]} 8. Qa4+ {[%clk 0:02:38]}  Nbd7 {[%clk 0:02:08]} 9. Bd3 {[%clk 0:02:35]}  O-O {[%clk 0:02:06]} 10. Qb3 {[%clk 0:02:34]}  a6 {[%clk 0:02:03]} 11. a4 {[%clk 0:02:33]}  b6 {[%clk 0:01:47]} 12. O-O {[%clk 0:02:30]}  Bb7 {[%clk 0:01:45]} 13. Nd2 {[%clk 0:02:30]}  Ng4 {[%clk 0:01:18]} 14. Be2 {[%clk 0:02:23]}  Qh4 {[%clk 0:01:10]} 15. h3 {[%clk 0:02:22]}  Nh6 {[%clk 0:00:58]} 16. Nc4 {[%clk 0:02:11]}  Nf5 {[%clk 0:00:48]} 17. Nxb6 {[%clk 0:02:09]}  Nxb6 {[%clk 0:00:46]} 18. Qxb6 {[%clk 0:02:10]}  Rab8 {[%clk 0:00:47]} 19. Qb3 {[%clk 0:01:47]}  Ne7 {[%clk 0:00:26]} 20. Qb6 {[%clk 0:01:24]}  Be5 {[%clk 0:00:15]} 21. f4 {[%clk 0:01:07]}  Nxd5 {[%clk 0:00:10]} 22. Nxd5 {[%clk 0:01:04]}  Bxd5 {[%clk 0:00:11]} 23. Qxa6 {[%clk 0:01:04]}  Bxb2 {[%clk 0:00:06]} 24. Rb1 {[%clk 0:00:56]}  Bxc1 {[%clk 0:00:04]} 25. Rbxc1 {[%clk 0:00:55]}  Qf6 {[%clk 0:00:03]} 26. Rcd1 {[%clk 0:00:53]}  Qe6 {[%clk 0:00:04]} 27. Qd3 {[%clk 0:00:49]}  Be4 {[%clk 0:00:03]} 28. Qxd6 {[%clk 0:00:49]}  Qb3 {[%clk 0:00:03]} 29. Qxc5 {[%clk 0:00:46]}  Rfc8 {[%clk 0:00:03]} 30. Qd4 {[%clk 0:00:46]}  f5 {[%clk 0:00:02]} 31. Bb5 {[%clk 0:00:38]}  Qa2 {[%clk 0:00:01]} 32. Rd2 {[%clk 0:00:34]}  Qb3 {[%clk 0:00:01]} 33. Rfd1 {[%clk 0:00:33]}  Kf7 {[%clk 0:00:01]} 34. Qa7+ {[%clk 0:00:33]} 1-0


[Site "https://www.chess.com"]